[Event "Titled Tuesday Blitz April 05 Early 2022"]
[White "Dixit, Nikhil"]
[Black "Fier, Alexandr"]
[WhiteFideId "5059534"]
[BlackFideId "2107139"]
[WhiteElo "2223"]
[BlackElo "2571"]
[Result "0-1"]
[Round "08"]
[TimeControl "180+1"]
[Date "2022.04.05"]
[WhiteClock "0:00:27"]
[BlackClock "0:02:08"]

1. e4 {[%clk 0:02:58]}  d5 {[%clk 0:02:59]} 2. exd5 {[%clk 0:02:53]}  Nf6 {[%clk 0:02:59]} 3. d4 {[%clk 0:02:51]}  Nxd5 {[%clk 0:02:57]} 4. Be2 {[%clk 0:02:45]}  g6 {[%clk 0:02:57]} 5. Bf3 {[%clk 0:02:41]}  Bg7 {[%clk 0:02:58]} 6. Ne2 {[%clk 0:02:41]}  O-O {[%clk 0:02:58]} 7. O-O {[%clk 0:02:42]}  Nc6 {[%clk 0:02:58]} 8. c3 {[%clk 0:02:37]}  Nb6 {[%clk 0:02:56]} 9. Na3 {[%clk 0:02:17]}  e5 {[%clk 0:02:56]} 10. Bxc6 {[%clk 0:02:12]}  bxc6 {[%clk 0:02:56]} 11. dxe5 {[%clk 0:02:13]}  Bxe5 {[%clk 0:02:57]} 12. Bh6 {[%clk 0:02:11]}  Re8 {[%clk 0:02:55]} 13. Qxd8 {[%clk 0:02:08]}  Rxd8 {[%clk 0:02:56]} 14. Rad1 {[%clk 0:02:01]}  Ba6 {[%clk 0:02:56]} 15. Rde1 {[%clk 0:01:35]}  Na4 {[%clk 0:02:52]} 16. Bc1 {[%clk 0:01:25]}  Bf6 {[%clk 0:02:50]} 17. f3 {[%clk 0:01:09]}  Nc5 {[%clk 0:02:49]} 18. c4 {[%clk 0:01:04]}  Nd3 {[%clk 0:02:47]} 19. Rd1 {[%clk 0:01:05]}  Nxb2 {[%clk 0:02:47]} 20. Rxd8+ {[%clk 0:00:50]}  Rxd8 {[%clk 0:02:48]} 21. Be3 {[%clk 0:00:48]}  Nxc4 {[%clk 0:02:47]} 22. Nxc4 {[%clk 0:00:49]}  Bxc4 {[%clk 0:02:48]} 23. Re1 {[%clk 0:00:49]}  Bxa2 {[%clk 0:02:41]} 24. Bxa7 {[%clk 0:00:49]}  Kg7 {[%clk 0:02:30]} 25. Kf2 {[%clk 0:00:48]}  Bc4 {[%clk 0:02:27]} 26. Be3 {[%clk 0:00:47]}  Bb5 {[%clk 0:02:25]} 27. g3 {[%clk 0:00:43]}  Rd3 {[%clk 0:02:25]} 28. Rc1 {[%clk 0:00:41]}  Ra3 {[%clk 0:02:25]} 29. Rc2 {[%clk 0:00:40]}  Bd3 {[%clk 0:02:24]} 30. Rd2 {[%clk 0:00:40]}  Bb5 {[%clk 0:02:18]} 31. Bc5 {[%clk 0:00:36]}  Ra1 {[%clk 0:02:14]} 32. Bd4 {[%clk 0:00:29]}  Bxd4+ {[%clk 0:02:13]} 33. Nxd4 {[%clk 0:00:30]}  h5 {[%clk 0:02:13]} 34. h4 {[%clk 0:00:28]}  Rc1 {[%clk 0:02:10]} 35. Ke3 {[%clk 0:00:28]}  Rc4 {[%clk 0:02:07]} 36. g4 {[%clk 0:00:27]}  hxg4 {[%clk 0:02:06]} 37. fxg4 {[%clk 0:00:28]}  Ba4 {[%clk 0:02:07]} 38. g5 {[%clk 0:00:28]}  c5 {[%clk 0:02:08]} 39. Nf3 {[%clk 0:00:28]}  Bc6 {[%clk 0:02:07]} 40. Ne5 {[%clk 0:00:27]}  Re4+ {[%clk 0:02:08]} 0-1


[Site "https://www.chess.com"]

[Event "Titled Tuesday Blitz April 05 Early 2022"]
[White "Gatterer, Florian"]
[Black "Le Ruyet, Leopold"]
[WhiteFideId "811688"]
[BlackFideId "645923"]
[WhiteElo "2218"]
[BlackElo "2276"]
[Result "1/2-1/2"]
[Round "08"]
[TimeControl "180+1"]
[Date "2022.04.05"]
[WhiteClock "0:00:26"]
[BlackClock "0:00:13"]

1. b3 {[%clk 0:03:00]}  g6 {[%clk 0:02:58]} 2. Bb2 {[%clk 0:02:59]}  Nf6 {[%clk 0:02:58]} 3. e3 {[%clk 0:03:00]}  Bg7 {[%clk 0:02:58]} 4. Nf3 {[%clk 0:03:00]}  O-O {[%clk 0:02:57]} 5. Be2 {[%clk 0:02:59]}  d6 {[%clk 0:02:58]} 6. d4 {[%clk 0:02:59]}  Nbd7 {[%clk 0:02:55]} 7. O-O {[%clk 0:02:55]}  b6 {[%clk 0:02:55]} 8. c4 {[%clk 0:02:54]}  Bb7 {[%clk 0:02:54]} 9. d5 {[%clk 0:02:53]}  c6 {[%clk 0:02:47]} 10. dxc6 {[%clk 0:02:51]}  Bxc6 {[%clk 0:02:47]} 11. Nd4 {[%clk 0:02:51]}  Bb7 {[%clk 0:02:47]} 12. Bf3 {[%clk 0:02:51]}  Qc8 {[%clk 0:02:45]} 13. Nc3 {[%clk 0:02:46]}  Ne5 {[%clk 0:02:41]} 14. Bxb7 {[%clk 0:02:38]}  Qxb7 {[%clk 0:02:42]} 15. h3 {[%clk 0:02:38]}  Rfd8 {[%clk 0:02:32]} 16. Qe2 {[%clk 0:02:35]}  d5 {[%clk 0:02:19]} 17. cxd5 {[%clk 0:02:29]}  Nxd5 {[%clk 0:02:19]} 18. Nxd5 {[%clk 0:02:16]}  Rxd5 {[%clk 0:02:18]} 19. Rac1 {[%clk 0:02:09]}  Rad8 {[%clk 0:02:14]} 20. Rfd1 {[%clk 0:01:55]}  Kf8 {[%clk 0:01:43]} 21. Ba3 {[%clk 0:01:39]}  Bf6 {[%clk 0:01:40]} 22. Nf3 {[%clk 0:01:31]}  Rxd1+ {[%clk 0:01:32]} 23. Rxd1 {[%clk 0:01:29]}  Rxd1+ {[%clk 0:01:26]} 24. Qxd1 {[%clk 0:01:28]}  Nxf3+ {[%clk 0:01:26]} 25. Qxf3 {[%clk 0:01:09]}  Qxf3 {[%clk 0:01:19]} 26. gxf3 {[%clk 0:01:08]}  Ke8 {[%clk 0:01:06]} 27. Kf1 {[%clk 0:01:08]}  Kd7 {[%clk 0:01:05]} 28. Ke2 {[%clk 0:01:08]}  Bh4 {[%clk 0:01:04]} 29. f4 {[%clk 0:01:02]}  Kc6 {[%clk 0:00:32]} 30. f3 {[%clk 0:01:01]}  Kd5 {[%clk 0:00:26]} 31. Kd3 {[%clk 0:01:00]}  e6 {[%clk 0:00:23]} 32. Bf8 {[%clk 0:00:46]}  Bf2 {[%clk 0:00:20]} 33. Be7 {[%clk 0:00:41]}  Bg1 {[%clk 0:00:15]} 34. Bf8 {[%clk 0:00:37]}  Bh2 {[%clk 0:00:15]} 35. Be7 {[%clk 0:00:36]}  Bg3 {[%clk 0:00:16]} 36. Bf6 {[%clk 0:00:35]}  Bf2 {[%clk 0:00:15]} 37. Be7 {[%clk 0:00:35]}  Bg1 {[%clk 0:00:15]} 38. Bf6 {[%clk 0:00:34]}  h5 {[%clk 0:00:14]} 39. Be7 {[%clk 0:00:33]}  Bf2 {[%clk 0:00:14]} 40. Bf6 {[%clk 0:00:32]}  Bg1 {[%clk 0:00:14]} 41. Be7 {[%clk 0:00:32]}  Bh2 {[%clk 0:00:14]} 42. Bf6 {[%clk 0:00:31]}  Kc5 {[%clk 0:00:14]} 43. Be7+ {[%clk 0:00:30]}  Kd5 {[%clk 0:00:14]} 44. Bf6 {[%clk 0:00:29]}  Kc6 {[%clk 0:00:14]} 45. Be7 {[%clk 0:00:26]}  Kd5 {[%clk 0:00:13]} 1/2-1/2


[Site "https://www.chess.com"]

[Event "Titled Tuesday Blitz April 05 Early 2022"]
[White "Golubeva, Oksana"]
[Black "Samaganova, Aleksandra"]
[WhiteFideId "4170164"]
[BlackFideId "13800221"]
[WhiteElo "2162"]
[BlackElo "1859"]
[Result "0-1"]
[Round "08"]
[TimeControl "180+1"]
[Date "2022.04.05"]
[WhiteClock "0:00:32"]
[BlackClock "0:00:13"]

1. Nf3 {[%clk 0:02:59]}  c5 {[%clk 0:02:59]} 2. e3 {[%clk 0:02:59]}  e6 {[%clk 0:02:59]} 3. c4 {[%clk 0:02:57]}  Nf6 {[%clk 0:02:58]} 4. Nc3 {[%clk 0:02:57]}  Nc6 {[%clk 0:02:56]} 5. b3 {[%clk 0:02:58]}  d5 {[%clk 0:02:55]} 6. d4 {[%clk 0:02:55]}  cxd4 {[%clk 0:02:54]} 7. Nxd4 {[%clk 0:02:51]}  Bb4 {[%clk 0:02:41]} 8. Bd2 {[%clk 0:02:19]}  Nxd4 {[%clk 0:02:34]} 9. exd4 {[%clk 0:02:20]}  dxc4 {[%clk 0:02:32]} 10. bxc4 {[%clk 0:02:16]}  O-O {[%clk 0:02:28]} 11. Qb3 {[%clk 0:02:13]}  Ba5 {[%clk 0:02:22]} 12. O-O-O {[%clk 0:02:10]}  Qxd4 {[%clk 0:02:09]} 13. Nb1 {[%clk 0:02:02]}  Bxd2+ {[%clk 0:02:04]} 14. Rxd2 {[%clk 0:02:03]}  Qc5 {[%clk 0:01:52]} 15. Bd3 {[%clk 0:02:01]}  b5 {[%clk 0:01:39]} 16. Qxb5 {[%clk 0:01:58]}  Qc7 {[%clk 0:01:27]} 17. g4 {[%clk 0:01:49]}  Rb8 {[%clk 0:01:01]} 18. Qg5 {[%clk 0:01:47]}  Bb7 {[%clk 0:00:49]} 19. Rg1 {[%clk 0:01:38]}  Be4 {[%clk 0:00:48]} 20. Qe3 {[%clk 0:01:33]}  Qxc4+ {[%clk 0:00:38]} 21. Bc2 {[%clk 0:01:07]}  Rfc8 {[%clk 0:00:27]} 22. Na3 {[%clk 0:00:55]}  Qxa2 {[%clk 0:00:20]} 23. Kd1 {[%clk 0:00:28]}  Bxc2+ {[%clk 0:00:14]} 24. Rxc2 {[%clk 0:00:25]}  Rxc2 {[%clk 0:00:06]} 25. Nxc2 {[%clk 0:00:21]}  Rb1+ {[%clk 0:00:07]} 26. Ke2 {[%clk 0:00:14]}  Qxc2+ {[%clk 0:00:06]} 27. Kf3 {[%clk 0:00:13]}  Rxg1 {[%clk 0:00:06]} 28. Qxa7 {[%clk 0:00:12]}  Qc6+ {[%clk 0:00:06]} 29. Ke2 {[%clk 0:00:12]}  Qe4+ {[%clk 0:00:06]} 30. Kd2 {[%clk 0:00:11]}  Qe1+ {[%clk 0:00:05]} 31. Kd3 {[%clk 0:00:10]}  g6 {[%clk 0:00:06]} 32. g5 {[%clk 0:00:08]}  Qe4+ {[%clk 0:00:05]} 33. Kd2 {[%clk 0:00:07]}  Qf4+ {[%clk 0:00:06]} 34. Ke2 {[%clk 0:00:07]}  Qxg5 {[%clk 0:00:06]} 35. Qb8+ {[%clk 0:00:07]}  Kg7 {[%clk 0:00:06]} 36. Qb2 {[%clk 0:00:08]}  Qg4+ {[%clk 0:00:06]} 37. Ke3 {[%clk 0:00:08]}  Re1+ {[%clk 0:00:06]} 38. Kd3 {[%clk 0:00:07]}  Qe2+ {[%clk 0:00:06]} 39. Qxe2 {[%clk 0:00:07]}  Rxe2 {[%clk 0:00:07]} 40. Kxe2 {[%clk 0:00:08]}  Kh6 {[%clk 0:00:07]} 41. Kf3 {[%clk 0:00:09]}  Kg5 {[%clk 0:00:07]} 42. Kg3 {[%clk 0:00:09]}  Kf5 {[%clk 0:00:08]} 43. Kh4 {[%clk 0:00:09]}  Ne4 {[%clk 0:00:08]} 44. f3 {[%clk 0:00:09]}  Nd2 {[%clk 0:00:08]} 45. Kg3 {[%clk 0:00:10]}  e5 {[%clk 0:00:09]} 46. Kf2 {[%clk 0:00:10]}  Kf4 {[%clk 0:00:09]} 47. Ke2 {[%clk 0:00:11]}  Nxf3 {[%clk 0:00:10]} 48. h3 {[%clk 0:00:11]}  Ng1+ {[%clk 0:00:09]} 49. Kf2 {[%clk 0:00:12]}  Nxh3+ {[%clk 0:00:10]} 50. Kg2 {[%clk 0:00:13]}  Ng5 {[%clk 0:00:11]} 51. Kf2 {[%clk 0:00:13]}  Ne6 {[%clk 0:00:12]} 52. Ke2 {[%clk 0:00:14]}  h5 {[%clk 0:00:13]} 53. Kf2 {[%clk 0:00:15]}  Kg4 {[%clk 0:00:13]} 54. Kg2 {[%clk 0:00:15]}  e4 {[%clk 0:00:14]} 55. Kh2 {[%clk 0:00:16]}  e3 {[%clk 0:00:14]} 56. Kg2 {[%clk 0:00:17]}  e2 {[%clk 0:00:14]} 57. Kf2 {[%clk 0:00:18]}  h4 {[%clk 0:00:13]} 58. Kxe2 {[%clk 0:00:19]}  Kg3 {[%clk 0:00:14]} 59. Kf1 {[%clk 0:00:19]}  g5 {[%clk 0:00:14]} 60. Kg1 {[%clk 0:00:20]}  g4 {[%clk 0:00:15]} 61. Kh1 {[%clk 0:00:21]}  Nf4 {[%clk 0:00:14]} 62. Kg1 {[%clk 0:00:22]}  h3 {[%clk 0:00:15]} 63. Kh1 {[%clk 0:00:23]}  Ng6 {[%clk 0:00:15]} 64. Kg1 {[%clk 0:00:24]}  Nh4 {[%clk 0:00:15]} 65. Kh1 {[%clk 0:00:25]}  f5 {[%clk 0:00:14]} 66. Kg1 {[%clk 0:00:26]}  Ng6 {[%clk 0:00:13]} 67. Kh1 {[%clk 0:00:27]}  Kf2 {[%clk 0:00:12]} 68. Kh2 {[%clk 0:00:27]}  Nf4 {[%clk 0:00:12]} 69. Kh1 {[%clk 0:00:28]}  Ne2 {[%clk 0:00:11]} 70. Kh2 {[%clk 0:00:29]}  g3+ {[%clk 0:00:11]} 71. Kh1 {[%clk 0:00:30]}  g2+ {[%clk 0:00:12]} 72. Kh2 {[%clk 0:00:31]}  g1=Q+ {[%clk 0:00:13]} 73. Kxh3 {[%clk 0:00:32]}  Qg3# {[%clk 0:00:13]} 0-1


[Site "https://www.chess.com"]

[Event "Titled Tuesday Blitz April 05 Early 2022"]
[White "Gontcharov, Vladislav"]
[Black "Rodchenkov, Vitaly"]
[WhiteFideId "4123492"]
[BlackFideId "4152964"]
[WhiteElo "2488"]
[BlackElo "2337"]
[Result "1-0"]
[Round "08"]
[TimeControl "180+1"]
[Date "2022.04.05"]
[WhiteClock "0:00:36"]
[BlackClock "0:00:16"]

1. d4 {[%clk 0:03:00]}  Nf6 {[%clk 0:02:59]} 2. c4 {[%clk 0:03:01]}  e6 {[%clk 0:03:00]} 3. Nf3 {[%clk 0:03:00]}  Bb4+ {[%clk 0:03:00]} 4. Nbd2 {[%clk 0:02:59]}  O-O {[%clk 0:03:00]} 5. a3 {[%clk 0:02:57]}  Bxd2+ {[%clk 0:02:59]} 6. Qxd2 {[%clk 0:02:56]}  d6 {[%clk 0:03:00]} 7. g3 {[%clk 0:02:54]}  Nbd7 {[%clk 0:03:01]} 8. Bg2 {[%clk 0:02:55]}  e5 {[%clk 0:02:59]} 9. O-O {[%clk 0:02:54]}  Re8 {[%clk 0:02:57]} 10. Qc2 {[%clk 0:02:46]}  Qe7 {[%clk 0:02:51]} 11. e3 {[%clk 0:02:41]}  Nf8 {[%clk 0:02:46]} 12. b4 {[%clk 0:02:40]}  Bg4 {[%clk 0:02:45]} 13. Bb2 {[%clk 0:02:39]}  N8d7 {[%clk 0:02:43]} 14. Rac1 {[%clk 0:02:34]}  g6 {[%clk 0:02:41]} 15. c5 {[%clk 0:02:29]}  Bf5 {[%clk 0:02:39]} 16. Qa4 {[%clk 0:02:13]}  a6 {[%clk 0:02:00]} 17. Rfd1 {[%clk 0:01:56]}  Bg4 {[%clk 0:01:57]} 18. h3 {[%clk 0:01:53]}  Bxf3 {[%clk 0:01:57]} 19. cxd6 {[%clk 0:01:53]}  cxd6 {[%clk 0:01:55]} 20. Bxf3 {[%clk 0:01:51]}  b5 {[%clk 0:01:55]} 21. Qa5 {[%clk 0:01:43]}  Ra7 {[%clk 0:01:50]} 22. dxe5 {[%clk 0:01:35]}  Nxe5 {[%clk 0:01:46]} 23. Be2 {[%clk 0:01:22]}  Ne4 {[%clk 0:01:29]} 24. Bd4 {[%clk 0:01:17]}  Raa8 {[%clk 0:01:27]} 25. Kg2 {[%clk 0:01:13]}  Qb7 {[%clk 0:01:18]} 26. Qc7 {[%clk 0:01:06]}  Qd5 {[%clk 0:01:02]} 27. Bxe5 {[%clk 0:00:55]}  Qxe5 {[%clk 0:01:02]} 28. Bf3 {[%clk 0:00:54]}  Re7 {[%clk 0:00:49]} 29. Qc6 {[%clk 0:00:50]}  Raa7 {[%clk 0:00:44]} 30. Rd4 {[%clk 0:00:41]}  Nf6 {[%clk 0:00:39]} 31. Qxd6 {[%clk 0:00:39]}  Qf5 {[%clk 0:00:25]} 32. Rc5 {[%clk 0:00:38]}  Qd7 {[%clk 0:00:21]} 33. Qxf6 {[%clk 0:00:38]}  Qe8 {[%clk 0:00:17]} 34. Rcd5 {[%clk 0:00:37]}  Rad7 {[%clk 0:00:15]} 35. Rxd7 {[%clk 0:00:36]}  Rxd7 {[%clk 0:00:16]} 36. Bc6 {[%clk 0:00:36]} 1-0


[Site "https://www.chess.com"]

[Event "Titled Tuesday Blitz April 05 Early 2022"]
[White "Heinemann, Josefine"]
[Black "Sahil, Tickoo"]
[WhiteFideId "12900460"]
[BlackFideId "5019710"]
[WhiteElo "2300"]
[BlackElo "2099"]
[Result "1/2-1/2"]
[Round "08"]
[TimeControl "180+1"]
[Date "2022.04.05"]
[WhiteClock "0:01:32"]
[BlackClock "0:00:05"]

1. Nf3 {[%clk 0:03:00]}  d5 {[%clk 0:02:59]} 2. g3 {[%clk 0:03:00]}  Nf6 {[%clk 0:02:59]} 3. Bg2 {[%clk 0:03:01]}  c6 {[%clk 0:02:57]} 4. O-O {[%clk 0:03:01]}  Bf5 {[%clk 0:02:57]} 5. c4 {[%clk 0:02:58]}  e6 {[%clk 0:02:56]} 6. cxd5 {[%clk 0:02:52]}  exd5 {[%clk 0:02:55]} 7. d4 {[%clk 0:02:51]}  Bd6 {[%clk 0:02:50]} 8. Nc3 {[%clk 0:02:51]}  Nbd7 {[%clk 0:02:48]} 9. Bg5 {[%clk 0:02:49]}  h6 {[%clk 0:02:46]} 10. Bxf6 {[%clk 0:02:39]}  Nxf6 {[%clk 0:02:47]} 11. Ne5 {[%clk 0:02:40]}  O-O {[%clk 0:02:46]} 12. a3 {[%clk 0:02:39]}  Re8 {[%clk 0:02:42]} 13. f4 {[%clk 0:02:37]}  Ne4 {[%clk 0:02:34]} 14. Nxe4 {[%clk 0:02:37]}  Bxe4 {[%clk 0:02:35]} 15. Bxe4 {[%clk 0:02:37]}  dxe4 {[%clk 0:02:32]} 16. e3 {[%clk 0:02:37]}  f6 {[%clk 0:02:16]} 17. Nc4 {[%clk 0:02:36]}  f5 {[%clk 0:02:11]} 18. Nxd6 {[%clk 0:02:34]}  Qxd6 {[%clk 0:02:10]} 19. b4 {[%clk 0:02:35]}  a5 {[%clk 0:02:09]} 20. Qb3+ {[%clk 0:02:34]}  Kh7 {[%clk 0:01:40]} 21. Rfc1 {[%clk 0:02:28]}  axb4 {[%clk 0:01:38]} 22. axb4 {[%clk 0:02:27]}  b6 {[%clk 0:01:28]} 23. Qc4 {[%clk 0:02:14]}  Rxa1 {[%clk 0:01:04]} 24. Rxa1 {[%clk 0:02:09]}  Rc8 {[%clk 0:01:00]} 25. Ra7 {[%clk 0:02:05]}  Rc7 {[%clk 0:00:52]} 26. Rxc7 {[%clk 0:02:02]}  Qxc7 {[%clk 0:00:52]} 27. b5 {[%clk 0:02:02]}  c5 {[%clk 0:00:50]} 28. dxc5 {[%clk 0:01:59]}  bxc5 {[%clk 0:00:51]} 29. Kf2 {[%clk 0:01:59]}  Qd6 {[%clk 0:00:50]} 30. Ke2 {[%clk 0:01:57]}  Qb6 {[%clk 0:00:40]} 31. Kd1 {[%clk 0:01:53]}  Qa7 {[%clk 0:00:38]} 32. Qd5 {[%clk 0:01:40]}  Qa1+ {[%clk 0:00:36]} 33. Ke2 {[%clk 0:01:37]}  Qb2+ {[%clk 0:00:36]} 34. Kf1 {[%clk 0:01:36]}  Qxb5+ {[%clk 0:00:35]} 35. Kg2 {[%clk 0:01:36]}  Qe2+ {[%clk 0:00:34]} 36. Kh3 {[%clk 0:01:35]}  Qg4+ {[%clk 0:00:34]} 37. Kg2 {[%clk 0:01:35]}  Qf3+ {[%clk 0:00:33]} 38. Kh3 {[%clk 0:01:34]}  Qg4+ {[%clk 0:00:15]} 39. Kg2 {[%clk 0:01:33]}  Qe2+ {[%clk 0:00:14]} 40. Kh3 {[%clk 0:01:32]}  Qg4+ {[%clk 0:00:05]} 1/2-1/2


[Site "https://www.chess.com"]

[Event "Titled Tuesday Blitz April 05 Early 2022"]
[White "Kaminski, Victor"]
[Black "Papp, Levente"]
[WhiteFideId "1131630"]
[BlackFideId "751243"]
[WhiteElo "2181"]
[BlackElo "2308"]
[Result "0-1"]
[Round "08"]
[TimeControl "180+1"]
[Date "2022.04.05"]
[WhiteClock "0:00:02"]
[BlackClock "0:00:07"]

1. e4 {[%clk 0:03:00]}  e6 {[%clk 0:02:59]} 2. d4 {[%clk 0:02:59]}  d5 {[%clk 0:02:59]} 3. e5 {[%clk 0:02:58]}  c5 {[%clk 0:02:59]} 4. c3 {[%clk 0:02:57]}  Nc6 {[%clk 0:03:00]} 5. Nf3 {[%clk 0:02:56]}  Qb6 {[%clk 0:03:00]} 6. a3 {[%clk 0:02:55]}  Nh6 {[%clk 0:03:00]} 7. b4 {[%clk 0:02:53]}  cxd4 {[%clk 0:03:00]} 8. cxd4 {[%clk 0:02:53]}  Nf5 {[%clk 0:02:59]} 9. Be3 {[%clk 0:02:48]}  Be7 {[%clk 0:02:57]} 10. Nc3 {[%clk 0:02:43]}  f6 {[%clk 0:02:57]} 11. exf6 {[%clk 0:02:31]}  Bxf6 {[%clk 0:02:58]} 12. Na4 {[%clk 0:02:22]}  Qd8 {[%clk 0:02:54]} 13. Be2 {[%clk 0:02:20]}  O-O {[%clk 0:02:41]} 14. O-O {[%clk 0:02:19]}  Nce7 {[%clk 0:02:24]} 15. Bf4 {[%clk 0:02:12]}  Ng6 {[%clk 0:02:20]} 16. Bg3 {[%clk 0:02:09]}  Bd7 {[%clk 0:01:36]} 17. Bd3 {[%clk 0:02:02]}  b6 {[%clk 0:01:30]} 18. Bxf5 {[%clk 0:01:54]}  exf5 {[%clk 0:01:31]} 19. Bd6 {[%clk 0:01:54]}  Re8 {[%clk 0:01:30]} 20. Nc3 {[%clk 0:01:49]}  Bc6 {[%clk 0:01:26]} 21. Be5 {[%clk 0:01:44]}  Nxe5 {[%clk 0:01:20]} 22. dxe5 {[%clk 0:01:33]}  Bxe5 {[%clk 0:01:21]} 23. Nxe5 {[%clk 0:01:31]}  Rxe5 {[%clk 0:01:22]} 24. Qd4 {[%clk 0:01:30]}  Qe7 {[%clk 0:00:44]} 25. f4 {[%clk 0:00:49]}  Re6 {[%clk 0:00:44]} 26. Rad1 {[%clk 0:00:34]}  Rd8 {[%clk 0:00:42]} 27. h3 {[%clk 0:00:31]}  h6 {[%clk 0:00:40]} 28. Rd3 {[%clk 0:00:28]}  Bb7 {[%clk 0:00:35]} 29. Rg3 {[%clk 0:00:25]}  Qf6 {[%clk 0:00:33]} 30. Nb5 {[%clk 0:00:19]}  a6 {[%clk 0:00:21]} 31. Qxf6 {[%clk 0:00:18]}  Rxf6 {[%clk 0:00:22]} 32. Nd4 {[%clk 0:00:19]}  Rc8 {[%clk 0:00:16]} 33. Re1 {[%clk 0:00:18]}  Rf7 {[%clk 0:00:12]} 34. Re6 {[%clk 0:00:16]}  Rc4 {[%clk 0:00:11]} 35. Nf3 {[%clk 0:00:15]}  Rxf4 {[%clk 0:00:11]} 36. Rxb6 {[%clk 0:00:12]}  d4 {[%clk 0:00:11]} 37. Rd6 {[%clk 0:00:11]}  Bxf3 {[%clk 0:00:11]} 38. Rxf3 {[%clk 0:00:11]}  Re4 {[%clk 0:00:11]} 39. Rxa6 {[%clk 0:00:09]}  f4 {[%clk 0:00:11]} 40. Ra8+ {[%clk 0:00:06]}  Kh7 {[%clk 0:00:11]} 41. b5 {[%clk 0:00:06]}  Rd7 {[%clk 0:00:11]} 42. Rd3 {[%clk 0:00:04]}  Re3 {[%clk 0:00:11]} 43. Rd1 {[%clk 0:00:02]}  d3 {[%clk 0:00:11]} 44. b6 {[%clk 0:00:01]}  d2 {[%clk 0:00:12]} 45. Ra7 {[%clk 0:00:02]}  Re1+ {[%clk 0:00:12]} 46. Kf2 {[%clk 0:00:02]}  Rxa7 {[%clk 0:00:07]} 47. bxa7 {[%clk 0:00:02]}  Rxd1 {[%clk 0:00:07]} 48. a8=Q {[%clk 0:00:02]}  Re1 {[%clk 0:00:07]} 0-1


[Site "https://www.chess.com"]

[Event "Titled Tuesday Blitz April 05 Early 2022"]
[White "Kouskoutis, Georgios-Alexandros"]
[Black "Manolache, Marius"]
[WhiteFideId "4234049"]
[BlackFideId "1201530"]
[WhiteElo "2130"]
[BlackElo "2364"]
[Result "0-1"]
[Round "08"]
[TimeControl "180+1"]
[Date "2022.04.05"]
[WhiteClock "0:00:02"]
[BlackClock "0:00:22"]

1. c4 {[%clk 0:03:00]}  e5 {[%clk 0:02:58]} 2. g3 {[%clk 0:03:00]}  g6 {[%clk 0:02:57]} 3. Bg2 {[%clk 0:03:00]}  Bg7 {[%clk 0:02:57]} 4. Nc3 {[%clk 0:03:01]}  Nc6 {[%clk 0:02:57]} 5. e4 {[%clk 0:03:02]}  d6 {[%clk 0:02:56]} 6. Nge2 {[%clk 0:03:02]}  h5 {[%clk 0:02:55]} 7. h4 {[%clk 0:03:01]}  Nd4 {[%clk 0:02:53]} 8. Nxd4 {[%clk 0:02:58]}  exd4 {[%clk 0:02:52]} 9. Ne2 {[%clk 0:02:58]}  Ne7 {[%clk 0:02:43]} 10. d3 {[%clk 0:02:58]}  Nc6 {[%clk 0:02:42]} 11. O-O {[%clk 0:02:43]}  O-O {[%clk 0:02:40]} 12. Bg5 {[%clk 0:02:33]}  Qe8 {[%clk 0:02:38]} 13. Rb1 {[%clk 0:02:22]}  a5 {[%clk 0:02:37]} 14. Qd2 {[%clk 0:02:04]}  Kh7 {[%clk 0:02:34]} 15. b3 {[%clk 0:01:37]}  Bg4 {[%clk 0:02:31]} 16. f3 {[%clk 0:01:36]}  Bd7 {[%clk 0:02:30]} 17. a3 {[%clk 0:01:34]}  Ra7 {[%clk 0:02:26]} 18. Qc2 {[%clk 0:01:27]}  Qe5 {[%clk 0:01:55]} 19. Bf4 {[%clk 0:01:17]}  Qe7 {[%clk 0:01:50]} 20. Kh2 {[%clk 0:01:09]}  Rfa8 {[%clk 0:01:47]} 21. Bh3 {[%clk 0:01:02]}  Bxh3 {[%clk 0:01:44]} 22. Kxh3 {[%clk 0:01:03]}  Nd8 {[%clk 0:01:39]} 23. Kg2 {[%clk 0:00:59]}  Ne6 {[%clk 0:01:37]} 24. Bd2 {[%clk 0:00:58]}  Nc5 {[%clk 0:01:35]} 25. Ng1 {[%clk 0:00:50]}  a4 {[%clk 0:01:31]} 26. b4 {[%clk 0:00:50]}  Nb3 {[%clk 0:01:32]} 27. Nh3 {[%clk 0:00:41]}  Kg8 {[%clk 0:01:30]} 28. Bg5 {[%clk 0:00:36]}  Qe8 {[%clk 0:01:28]} 29. Qe2 {[%clk 0:00:32]}  c6 {[%clk 0:01:26]} 30. g4 {[%clk 0:00:28]}  hxg4 {[%clk 0:01:16]} 31. fxg4 {[%clk 0:00:29]}  b5 {[%clk 0:01:15]} 32. cxb5 {[%clk 0:00:12]}  cxb5 {[%clk 0:01:14]} 33. h5 {[%clk 0:00:12]}  d5 {[%clk 0:01:15]} 34. h6 {[%clk 0:00:10]}  Bh8 {[%clk 0:01:08]} 35. Bf6 {[%clk 0:00:09]}  dxe4 {[%clk 0:01:05]} 36. dxe4 {[%clk 0:00:08]}  d3 {[%clk 0:01:00]} 37. Qxd3 {[%clk 0:00:07]}  Rd7 {[%clk 0:00:57]} 38. Qc3 {[%clk 0:00:06]}  Rc8 {[%clk 0:00:51]} 39. Qb2 {[%clk 0:00:01]}  Rd2+ {[%clk 0:00:38]} 40. Qxd2 {[%clk 0:00:02]}  Nxd2 {[%clk 0:00:38]} 41. Ng5 {[%clk 0:00:02]}  Bxf6 {[%clk 0:00:32]} 42. Rxf6 {[%clk 0:00:02]}  Qe5 {[%clk 0:00:24]} 43. Rxf7 {[%clk 0:00:02]}  Qxg5 {[%clk 0:00:23]} 44. Rg7+ {[%clk 0:00:02]}  Kh8 {[%clk 0:00:22]} 45. Rh1 {[%clk 0:00:02]}  Qxg4+ {[%clk 0:00:22]} 0-1


[Site "https://www.chess.com"]

[Event "Titled Tuesday Blitz April 05 Early 2022"]
[White "Lakshmi C"]
[Black "Buscar, Michael"]
[WhiteFideId "25035347"]
[BlackFideId "2603616"]
[WhiteElo "1775"]
[BlackElo "2010"]
[Result "0-1"]
[Round "08"]
[TimeControl "180+1"]
[Date "2022.04.05"]
[WhiteClock "0:00:02"]
[BlackClock "0:00:25"]

1. d4 {[%clk 0:02:56]}  Nf6 {[%clk 0:02:55]} 2. c4 {[%clk 0:02:56]}  e6 {[%clk 0:02:56]} 3. Nc3 {[%clk 0:02:55]}  d5 {[%clk 0:02:56]} 4. Bg5 {[%clk 0:02:53]}  Be7 {[%clk 0:02:54]} 5. e3 {[%clk 0:02:52]}  O-O {[%clk 0:02:53]} 6. Nf3 {[%clk 0:02:50]}  a6 {[%clk 0:02:53]} 7. cxd5 {[%clk 0:02:45]}  exd5 {[%clk 0:02:53]} 8. Bd3 {[%clk 0:02:45]}  Nbd7 {[%clk 0:02:53]} 9. O-O {[%clk 0:02:38]}  Re8 {[%clk 0:02:53]} 10. Ne5 {[%clk 0:02:35]}  Nf8 {[%clk 0:02:53]} 11. f3 {[%clk 0:02:34]}  c5 {[%clk 0:02:46]} 12. Qc2 {[%clk 0:02:31]}  c4 {[%clk 0:02:38]} 13. Be2 {[%clk 0:02:31]}  Ne6 {[%clk 0:02:31]} 14. Bh4 {[%clk 0:02:30]}  b5 {[%clk 0:02:28]} 15. a3 {[%clk 0:02:26]}  g6 {[%clk 0:02:27]} 16. Rad1 {[%clk 0:02:19]}  Ng7 {[%clk 0:02:27]} 17. e4 {[%clk 0:02:15]}  Bb7 {[%clk 0:02:16]} 18. Bf2 {[%clk 0:01:37]}  Bd6 {[%clk 0:02:05]} 19. exd5 {[%clk 0:01:33]}  Nxd5 {[%clk 0:02:00]} 20. Ng4 {[%clk 0:01:32]}  Nf5 {[%clk 0:01:50]} 21. Ne4 {[%clk 0:01:27]}  Bf8 {[%clk 0:01:46]} 22. Qc1 {[%clk 0:01:20]}  Bg7 {[%clk 0:01:44]} 23. Rfe1 {[%clk 0:00:52]}  Qb6 {[%clk 0:01:34]} 24. Ne5 {[%clk 0:00:37]}  Nfe3 {[%clk 0:01:11]} 25. Bxe3 {[%clk 0:00:19]}  Nxe3 {[%clk 0:01:12]} 26. Nd7 {[%clk 0:00:19]}  Qd8 {[%clk 0:01:04]} 27. Ndc5 {[%clk 0:00:16]}  Bxe4 {[%clk 0:01:00]} 28. Qxe3 {[%clk 0:00:11]}  Bc2 {[%clk 0:00:55]} 29. Qf2 {[%clk 0:00:11]}  Bxd1 {[%clk 0:00:52]} 30. Rxd1 {[%clk 0:00:11]}  Qd5 {[%clk 0:00:52]} 31. Ne4 {[%clk 0:00:10]}  Rad8 {[%clk 0:00:51]} 32. Nc3 {[%clk 0:00:11]}  Qe6 {[%clk 0:00:45]} 33. Ne4 {[%clk 0:00:04]}  f5 {[%clk 0:00:39]} 34. d5 {[%clk 0:00:03]}  Qe7 {[%clk 0:00:36]} 35. d6 {[%clk 0:00:03]}  Qe6 {[%clk 0:00:34]} 36. Nc5 {[%clk 0:00:02]}  Qxe2 {[%clk 0:00:34]} 37. Qxe2 {[%clk 0:00:01]}  Rxe2 {[%clk 0:00:33]} 38. d7 {[%clk 0:00:02]}  Re7 {[%clk 0:00:31]} 39. Rd6 {[%clk 0:00:02]}  Bxb2 {[%clk 0:00:25]} 0-1


[Site "https://www.chess.com"]